fUSD/lending_fUSD_20240216
["ID","MTS","AMOUNT","RATE_DAILY","PERIOD"]
[314216297,1708087854504,-893.107315,0.00051506,30]
[314216298,1708087854513,-465.433617,0.00051506,120]
[314216299,1708087854523,-2419.491867,0.00051506,30]
[314216300,1708087854533,-930.867234,0.00051506,120]
[314216301,1708087854542,-4937.924131,0.00051506,30]
[314216302,1708087854552,-3331.98755488,0.00051528,14]
[314216303,1708087854562,-58742.24933074,0.0005156,120]
[314216304,1708087854572,-151.47741082,0.00051576,50]
[314216305,1708087854582,-413.24,0.00051598,60]
[314216306,1708087854592,-150.0,0.00051599,11]
[314216307,1708087854601,-12000.0,0.00051631,8]
[314216308,1708087854611,-202.24,0.000517,120]
[314216309,1708087854621,-500.0,0.0005172,120]
[314216310,1708087854631,-448.0,0.00051758,2]
[314216311,1708087854641,-8874.5,0.000518,120]
[314216312,1708087854651,-9244.83566837,0.00051848,31]
[314216313,1708087854661,-150.0,0.00051879,11]
[314216314,1708087854671,-5000.0,0.00051885,90]
[314216315,1708087854681,-499.99999976,0.000519,60]
[314216316,1708087854691,-2856.57258154,0.00051903,60]
[314216317,1708087854701,-2891.20207706,0.00051904,60]
[314216318,1708087854710,-2875.35470044,0.00051904,60]
[314216319,1708087854720,-2961.62180201,0.00051904,60]
[314216320,1708087854730,-2889.86310628,0.0005191,60]
[314216321,1708087854740,-2845.4088467,0.0005191,60]
[314216322,1708087854750,-150.07174258,0.0005191,60]
[314216323,1708087854759,-2882.88987626,0.00051911,60]
[314216324,1708087854769,-2961.90844457,0.00051912,60]
[314216325,1708087854778,-2895.3080456,0.00051914,60]
[314216326,1708087854787,-2893.59942994,0.00051917,60]
[314216327,1708087854797,-2962.53392271,0.00051917,60]
[314216328,1708087854807,-2905.01482855,0.00051918,60]
[314216329,1708087854816,-2000.0,0.00051919,60]
[314216330,1708087854826,-2962.52038248,0.0005192,60]
[314216331,1708087854835,-2962.28781089,0.0005192,60]
[314216332,1708087854844,-2878.01451081,0.00051921,60]
[314216333,1708087854854,-2822.5186801,0.00051925,60]
[314216334,1708087854863,-2885.17767531,0.00051925,60]
[314216335,1708087854872,-2891.57935745,0.00051927,60]
[314216336,1708087854882,-1513.26371095,0.00051933,60]
[314216337,1708087854891,-2963.13006012,0.00051934,60]
[314216338,1708087854901,-2857.42045143,0.00051935,60]
[314216339,1708087854910,-1507.19419419,0.00051938,60]
[314216340,1708087854919,-2962.29830779,0.00051938,60]
[314216341,1708087854930,-2964.58884365,0.00051938,60]
[314216342,1708087854941,-2717.82630042,0.0005194,60]
[314216343,1708087854951,-2961.91921096,0.00051944,60]
[314216344,1708087854960,-2870.73787213,0.00051946,60]
[314216345,1708087854970,-2891.46717989,0.00051948,60]
[314216346,1708087854979,-2813.07954868,0.00051949,60]
[314216347,1708087854989,-2963.72149834,0.00051951,60]
[314216348,1708087854998,-2148.73921215,0.00051952,60]
[314216349,1708087855008,-2962.30982132,0.00051953,60]
[314216350,1708087855019,-2879.10062083,0.00051955,60]
[314216351,1708087855029,-2962.43424289,0.00051957,60]
[314216352,1708087855038,-2713.29053033,0.00051958,60]
[314216353,1708087855049,-2961.57938925,0.00051958,60]
[314216354,1708087855058,-2962.5223108,0.00051958,60]
[314216355,1708087855067,-2964.23216773,0.00051961,60]
[314216356,1708087855077,-2967.79134743,0.00051963,60]
[314216357,1708087855086,-2961.98170868,0.00051964,60]
[314216358,1708087855095,-358.87503253,0.00051965,60]
[314216359,1708087855105,-2962.62077454,0.00051966,60]
[314216360,1708087855114,-2874.63227037,0.00051967,60]
[314216361,1708087855124,-2819.43860619,0.0005197,60]
[314216362,1708087855133,-2965.12106833,0.00051972,60]
[314216363,1708087855143,-2895.25155007,0.00051973,60]
[314216364,1708087855152,-2761.10540739,0.00051975,60]
[314216365,1708087855161,-481.5873913,0.00051976,60]
[314216366,1708087855171,-2881.03449346,0.00051977,60]
[314216367,1708087855180,-2962.79575141,0.00051981,60]
[314216368,1708087855189,-2754.86921845,0.00051984,60]
[314216369,1708087855199,-2884.29078579,0.00051985,60]
[314216370,1708087855208,-2961.59500494,0.00051985,60]
[314216371,1708087855218,-200.0,0.00051987,64]
[314216372,1708087855227,-200.0,0.00051987,61]
[314216373,1708087855237,-200.0,0.00051987,78]
[314216374,1708087855246,-2862.5265087,0.00051988,60]
[314216375,1708087855256,-2510.25269534,0.00051989,60]
[314216376,1708087855265,-1507.78799274,0.00051991,60]
[314216377,1708087855274,-2961.5614374,0.00051992,60]
[314216378,1708087855284,-2688.45500812,0.00051994,60]
[314216379,1708087855293,-2966.22908824,0.00051998,60]
[314216380,1708087855302,-2743.61166137,0.00051999,60]
[314216381,1708087855313,-2966.08505091,0.00051999,60]
[314216382,1708087855323,-100000.0,0.00052,42]
[314216383,1708087855332,-210.54762924,0.00052,30]
[314216384,1708087855342,-20000.0,0.00052,120]
[314216385,1708087855352,-508632.58973125,0.00052,15]
[314216386,1708087855361,-17680.0,0.00052,120]
[314216387,1708087855371,-3500.0,0.00052,30]
[314216388,1708087855381,-1000.0,0.00052,120]
[314216389,1708087855390,-300.0,0.00052,52]
[314216390,1708087855400,-2000.0,0.00052,120]
[314216391,1708087855409,-776.0,0.00052,120]
[314216392,1708087855419,-300.0,0.00052,120]
[314216393,1708087855428,-390.0,0.00052,120]
[314216394,1708087855561,-507.0,0.00052,120]
[314216395,1708087855570,-659.0,0.00052,120]
[314216396,1708087855579,-856.0,0.00052,120]
[314216397,1708087855589,-1113.0,0.00052,120]
[314216398,1708087855598,-604.0,0.00052,120]
[314216399,1708087855607,-1000.0,0.00052,60]
[314216400,1708087855616,-150.0,0.00052,10]
[314216401,1708087855625,-5000.0,0.00052,60]
[314216402,1708087855634,-691.0,0.00052,120]
[314216403,1708087855644,-13697.27308915,0.00052,30]
[314216404,1708087855653,-5000.0,0.00052,60]
[314216405,1708087855662,-392.0,0.00052,120]
[314216406,1708087855671,-15112.7720879,0.00052,5]
[314216407,1708087855681,-773.0,0.00052,120]
[314216408,1708087855691,-372.0,0.00052,120]
[314216409,1708087855700,-759.0,0.00052,120]
[314216410,1708087855710,-426.0,0.00052,120]
[314216411,1708087855718,-848.18295324,0.00052,30]
[314216412,1708087855728,-7924.2833725,0.00052,120]
[314216413,1708087855741,-175.60069958,0.00052,10]
[314216414,1708087855750,-470.0,0.00052,120]
[314216415,1708087855760,-25000.0,0.00052,7]
[314216416,1708087855769,-610.83368537,0.00052,7]
[314216417,1708087855779,-25000.0,0.00052,120]
[314216418,1708087855789,-150.0,0.00052,30]
[314216419,1708087855798,-2874.30709245,0.00052,60]
[314216420,1708087855807,-2160.0,0.00052,120]
[314216421,1708087855817,-22579.48100574,0.00052,33]
[314216422,1708087855826,-755.50636192,0.00052,120]
[314216423,1708087855835,-1522.50111308,0.00052,120]
[314216424,1708087855844,-200.0,0.00052,30]
[314216425,1708087855853,-6230.0,0.00052025,61]
[314216426,1708087855862,-6230.0,0.00052025,61]
[314216427,1708087855871,-6230.0,0.00052035,61]
[314216428,1708087855880,-6230.0,0.00052035,61]
[314216429,1708087855889,-6230.0,0.00052035,61]
[314216430,1708087855898,-6231.98,0.00052035,61]
[314216431,1708087855907,-6230.0,0.00052045,61]
[314216432,1708087855918,-6230.0,0.00052045,61]
[314216433,1708087855928,-6230.0,0.00052045,61]
[314216434,1708087855940,-6230.0,0.00052045,61]
[314216435,1708087855950,-1329.810335,0.00052054,120]
[314216436,1708087855962,-7054.17733,0.00052054,30]
[314216437,1708087855971,-364.166054,0.00052054,30]
[314216438,1708087855980,-4702.522639,0.00052054,30]
[314216439,1708087855990,-235.126132,0.00052054,30]
[314216440,1708087856000,-4828.9604,0.00052054,30]
[314216441,1708087856013,-440.250087,0.00052054,30]
[314216442,1708087856023,-302.661685,0.00052054,120]
[314216443,1708087856034,-5231.827897,0.00052054,30]
[314216444,1708087856044,-423.726359,0.00052054,120]
[314216445,1708087856054,-381.353723,0.00052054,120]
[314216446,1708087856063,-2746.709646,0.00052054,30]
[314216447,1708087856072,-614.608003,0.00052054,120]
[314216448,1708087856082,-4368.583619,0.00052054,30]
[314216449,1708087856091,-888.128506,0.00052054,30]
[314216450,1708087856101,-260.11861,0.00052054,30]
[314216451,1708087856112,-265.962067,0.00052054,120]
[314216452,1708087856122,-1435.570565,0.00052054,30]
[314216453,1708087856131,-446.553657,0.00052054,30]
[314216454,1708087856140,-3000.0,0.00052054,120]
[314216455,1708087856149,-232.716808,0.00052054,120]
[314216456,1708087856158,-1209.745933,0.00052054,30]
[314216457,1708087856168,-500.0,0.00052054,31]
[314216458,1708087856177,-500.0,0.00052054,31]
[314216459,1708087856188,-518.83592799,0.00052054,31]
[314216460,1708087856198,-465.433617,0.00052054,120]
[314216461,1708087856207,-2468.962065,0.00052054,30]
[314216462,1708087856217,-908.81242195,0.00052055,120]
[314216463,1708087856226,-150.0,0.00052159,12]
[314216464,1708087856236,-604.0,0.00052188,7]
[314216465,1708087856245,-61347.26261,0.00052265,120]
[314216466,1708087856254,-207.0,0.00052286,35]
[314216467,1708087856262,-151.47741082,0.00052301,53]
[314216468,1708087856272,-3566.0,0.00052345,120]
[314216469,1708087856281,-150.0,0.00052439,12]
[314216470,1708087856290,-152.74044294,0.00052472,2]
[314216471,1708087856299,-150.0,0.00052487,2]
[314216472,1708087856308,-40096.0,0.0005249,120]
[314216473,1708087856317,-250.0,0.000525,120]
[314216474,1708087856327,-593.0,0.000525,30]
[314216475,1708087856336,-225.0,0.000525,30]
[314216476,1708087856345,-150.0,0.00052719,12]
[314216477,1708087856354,-152.0,0.000528,6]
[314216478,1708087856363,-161.69216868,0.000528,5]
[314216479,1708087856372,-182.53120796,0.000528,120]
[314216480,1708087856381,-150.0,0.000529,60]
[314216481,1708087856390,-149999.0,0.000529,30]
[314216482,1708087856399,-149999.0,0.000529,30]
[314216483,1708087856408,-70690.85460693,0.000529,30]
[314216484,1708087856417,-85607.45843331,0.000529,30]
[314216485,1708087856426,-149999.0,0.000529,30]
[314216486,1708087856435,-149999.0,0.000529,30]
[314216487,1708087856444,-123890.96272055,0.000529,30]
[314216488,1708087856454,-78239.09801395,0.000529,30]
[314216489,1708087856463,-149999.0,0.000529,30]
[314216490,1708087856472,-149999.0,0.000529,30]
[314216491,1708087856481,-149999.0,0.000529,30]
[314216492,1708087856490,-149999.0,0.000529,30]
[314216493,1708087856498,-149999.0,0.000529,30]
[314216494,1708087856507,-74918.4891098,0.000529,30]
[314216495,1708087856516,-78606.67226685,0.000529,30]
[314216496,1708087856525,-6808.71083917,0.000529,30]
[314216497,1708087856534,-17972.65606083,0.000529,30]
[314216498,1708087856543,-200.0,0.00052987,66]
[314216499,1708087856552,-200.0,0.00052987,63]
[314216500,1708087856562,-200.0,0.00052987,60]
[314216501,1708087856571,-150.0,0.00052999,12]
[314216502,1708087856580,-100000.0,0.00053,43]
[314216503,1708087856589,-1014.0,0.00053,60]
[314216504,1708087856599,-300.0,0.00053,53]
[314216505,1708087856608,-238.96,0.00053,120]
[314216506,1708087856618,-1000.0,0.00053,60]
[314216507,1708087856628,-565.89737923,0.00053,2]
[314216508,1708087856637,-150.0,0.00053,10]
[314216509,1708087856646,-80000.0,0.00053,120]
[314216510,1708087856655,-4289.77599838,0.00053,60]
[314216511,1708087856664,-9495.76595299,0.00053,120]
[314216512,1708087856673,-3000.0,0.00053,47]
[314216513,1708087856683,-5000.0,0.00053,62]
[314216514,1708087856692,-158.81,0.00053,120]
[314216515,1708087856701,-150.0,0.00053,31]
[314216516,1708087856710,-30199.00237771,0.00053,120]
[314216517,1708087856720,-11600.549999,0.00053,5]
[314216518,1708087856729,-8940.85999901,0.00053,5]
[314216519,1708087856739,-151.47741082,0.00053026,56]
[314216520,1708087856748,-166.99392,0.00053065,4]
[314216521,1708087856758,-3331.98755488,0.00053107,14]
[314216522,1708087856767,-3000.0,0.0005315,120]
[314216523,1708087856776,-256.04986775,0.000532,120]
[314216524,1708087856785,-256.04986772,0.000532,120]
[314216525,1708087856794,-256.04986772,0.000532,120]
[314216526,1708087856803,-256.04986772,0.000532,120]
[314216527,1708087856812,-256.04986772,0.000532,120]
[314216528,1708087856821,-800.0,0.0005326,120]
[314216529,1708087856831,-150.0,0.00053279,13]
[314216530,1708087856840,-998.41,0.000533,120]
[314216531,1708087856849,-438.81386115,0.0005331,2]
[314216532,1708087856859,-150.0,0.00053497,2]
[314216533,1708087856868,-1208.0,0.00053509,30]
[314216534,1708087856877,-150.0,0.00053559,13]
[314216535,1708087856887,-151.47741082,0.00053751,58]
[314216536,1708087856896,-150.0,0.00053839,13]
[314216537,1708087856905,-12140.18262938,0.0005387,120]
[314216538,1708087856914,-200.0,0.00053987,81]
[314216539,1708087856923,-200.0,0.00053987,75]
[314216540,1708087856934,-200.0,0.00053987,69]
[314216541,1708087856945,-100000.0,0.00054,44]
[314216542,1708087856954,-1000.0,0.00054,120]
[314216543,1708087856963,-2000.0,0.00054,120]
[314216544,1708087856972,-1000.0,0.00054,60]
[314216545,1708087856982,-150.0,0.00054,10]
[314216546,1708087856990,-1827.08407354,0.00054,7]
[314216547,1708087857000,-57892.73831898,0.00054,30]
[314216548,1708087857009,-212.44948337,0.00054,30]
[314216549,1708087857019,-150.0,0.00054,32]
[314216550,1708087857030,-59999.99999802,0.00054,120]
[314216551,1708087857039,-6042.28294801,0.00054,10]
[314216552,1708087857048,-448.0,0.00054022,2]
[314216553,1708087857057,-40025.23253135,0.00054114,120]
[314216554,1708087857067,-154.41673727,0.00054119,14]
[314216555,1708087857077,-1000.0,0.000542,2]
[314216556,1708087857085,-2871.0,0.00054236,120]
[314216557,1708087857095,-3000.0,0.00054246,120]
[314216558,1708087857104,-150.3424,0.00054246,5]
[314216559,1708087857113,-342.79,0.00054391,5]
[314216560,1708087857122,-151.47741082,0.00054476,61]
[314216561,1708087857131,-476.9317375,0.00054485,30]
[314216562,1708087857140,-3000.0,0.00054493,23]
[314216563,1708087857149,-150.0,0.00054493,120]
[314216564,1708087857158,-150.0,0.00054493,120]
[314216565,1708087857167,-150.0,0.00054493,120]
[314216566,1708087857177,-150.0,0.00054493,120]
[314216567,1708087857185,-150.0,0.00054493,120]
[314216568,1708087857194,-150.0,0.00054493,120]
[314216569,1708087857203,-150.0,0.00054493,120]
[314216570,1708087857213,-150.0,0.00054493,120]
[314216571,1708087857222,-1060.67251756,0.000545,7]
[314216572,1708087857232,-12893.814603,0.000545,120]
[314216573,1708087857241,-500.0,0.000545,120]
[314216574,1708087857250,-3000.0,0.000545,50]
[314216575,1708087857259,-5000.0,0.000545,64]
[314216576,1708087857269,-150.0,0.00054506,2]
[314216577,1708087857279,-206.64843169,0.000546,7]
[314216578,1708087857288,-8897.0,0.00054622,117]
[314216579,1708087857297,-3331.98755488,0.00054686,30]
[314216580,1708087857306,-1000.0,0.00054794,20]
[314216581,1708087857316,-1000.0,0.00054794,20]
[314216582,1708087857325,-1000.0,0.00054794,20]
[314216583,1708087857334,-544.99227108,0.00054794,20]
[314216584,1708087857343,-500.0,0.00054794,120]
[314216585,1708087857353,-500.0,0.00054794,120]
[314216586,1708087857362,-500.0,0.00054794,120]
[314216587,1708087857372,-500.0,0.00054794,120]
[314216588,1708087857381,-500.0,0.00054794,120]
[314216589,1708087857391,-500.0,0.00054794,120]
[314216590,1708087857400,-500.0,0.00054794,120]
[314216591,1708087857409,-500.0,0.00054794,120]
[314216592,1708087857419,-500.0,0.00054794,120]
[314216593,1708087857428,-500.0,0.00054794,120]
[314216594,1708087857437,-500.0,0.00054794,120]
[314216595,1708087857447,-500.0,0.00054794,120]
[314216596,1708087857456,-500.0,0.00054794,120]
[314216597,1708087857465,-500.0,0.00054794,120]
[314216598,1708087857474,-531.31028031,0.00054794,120]
[314216599,1708087857483,-149142.78,0.00054795,30]
[314216600,1708087857492,-161.04,0.00054795,30]
[314216601,1708087857501,-500.0,0.00054795,120]
[314216602,1708087857510,-500.0,0.00054795,120]
[314216603,1708087857519,-500.0,0.00054795,120]
[314216604,1708087857528,-500.0,0.00054795,120]
[314216605,1708087857537,-500.0,0.00054795,120]
[314216606,1708087857547,-621.02546428,0.00054795,120]
[314216607,1708087857556,-200.0,0.000548,120]
[314216608,1708087857565,-2000.0,0.000548,120]
[314216609,1708087857575,-5000.0,0.000548,120]
[314216610,1708087857584,-207.0,0.00054858,43]
[314216611,1708087857593,-588.0,0.0005489,2]
[314216612,1708087857603,-316.0,0.0005489,2]
[314216613,1708087857612,-298379.25457617,0.000549,2]
[314216614,1708087857621,-37860.15640286,0.000549,120]
[314216616,1708087869972,328.0,0.00039972,120]
[314216617,1708087870362,661764.02488307,0.00023,2]
[314216618,1708087870411,5580.0,0.00023,2]
[314216619,1708087870447,50000.0,0.00023,2]
[314216620,1708087870481,50000.0,0.00023,2]
[314216621,1708087870522,50000.0,0.00023,2]
[314216622,1708087870553,50000.0,0.00023,2]
[314216623,1708087870604,50000.0,0.00023,2]
[314216624,1708087870636,20000.0,0.00023,2]
[314216625,1708087870666,571600.0,0.00023,2]
[314216626,1708087870687,2525628.50412722,0.00023,2]
[314216627,1708087884413,747.44044525,0.00039972,120]
[314216629,1708087915075,117529.34958098,0.00022789,2]
[314216630,1708087933870,287.21547138,0.00039972,120]
[314216632,1708088021692,227.67682116,0.00039972,120]
[314216633,1708088033166,1541060.529889,0.00023,2]
[314216634,1708088064023,211.58332998,0.00039972,120]
[314216635,1708088065835,195.20609658,0.000137,2]
[314216636,1708088066630,155.28464927,0.00022,2]
[314216639,1708088070809,2513.90859555,0.000232,2]
[314216640,1708088072504,286.11143661,0.00039972,120]
[314216641,1708088072959,153.86190419,0.00039972,120]
[314216642,1708088650893,500.0,0.00039928,120]
[314216644,1708088761098,-155.0,0.00024982,2]
[314216645,1708088761121,-250.32762195,0.00024983,2]
[314216646,1708088761144,-750.0,0.00025,3]
[314216647,1708088761342,-800.0,0.00027,3]
[314216648,1708088761367,-151.28856,0.000279,2]
[314216649,1708088761391,-1620.48318869,0.00027999,2]
[314216650,1708088761412,-67616.34667039,0.00028,2]
[314216651,1708088761434,-34120.47063758,0.000281,2]
[314216652,1708088761455,-850.0,0.00029,3]
[314216653,1708088761476,-390.73,0.00029,2]
[314216654,1708088761497,-499.99,0.00029,2]
[314216655,1708088761517,-245.6,0.00029968,2]
[314216656,1708088761538,-3013.17926657,0.0003,2]
[314216657,1708088761560,-155.0,0.0003,2]
[314216658,1708088761580,-313.93,0.0003,2]
[314216659,1708088761601,-99067.65405482,0.0003,2]
[314216660,1708088824139,-250.32762195,0.00027998,2]
[314216661,1708088824161,-300.0,0.00027999,2]
[314216662,1708088824183,-150.0,0.00027999,2]
[314216663,1708088824367,-150.0,0.00027999,2]
[314216664,1708088824390,-387.96760174,0.000299,2]
[314216665,1708088824411,-155.0,0.00029999,2]
[314216666,1708088824433,-357097.57150475,0.0003,2]
[314216667,1708088824456,-11.56635743,0.0003,4]
[314216668,1708088875725,-2139.76866503,0.000299,4]
[314216669,1708088875746,-1083.29522369,0.0003,4]
[314216670,1708088881911,-527.37,0.00029015,2]
[314216671,1708088881931,-500.3098082,0.0003,2]
[314216672,1708088944322,-500.0,0.00030025,2]
[314216673,1708088944344,-200.0,0.00030077,2]
[314216674,1708088944366,-387.96760157,0.00030179,2]
[314216675,1708088944385,-150.0,0.00030224,2]
[314216676,1708088944405,-2000.0,0.0003025,2]
[314216677,1708088944425,-150.0,0.00030334,2]
[314216678,1708088944447,-387.96760157,0.00030458,2]
[314216679,1708088944467,-838.0,0.00030458,2]
[314216680,1708088944487,-250.0,0.00030477,2]
[314216681,1708088944506,-1645.35,0.00030477,2]
[314216682,1708088944525,-168.62,0.00030503,2]
[314216683,1708088944546,-400.0,0.00030515,2]
[314216684,1708088944571,-2356.88,0.00030516,2]
[314216685,1708088944592,-4757.71,0.00030516,2]
[314216686,1708088944614,-2705.0,0.00030587,2]
[314216687,1708088944639,-387.96760157,0.00030737,2]
[314216688,1708088944662,-23900.0,0.0003078,2]
[314216689,1708088944683,-217.23,0.0003078,2]
[314216690,1708088944708,-4013.61,0.00030839,2]
[314216691,1708088944729,-341.75,0.00030861,2]
[314216692,1708088944749,-164.61,0.00030922,2]
[314216693,1708088944769,-250.0,0.00030987,2]
[314216694,1708088944791,-900.0,0.00031,3]
[314216695,1708088944813,-387.96760157,0.00031016,2]
[314216696,1708088944834,-341.75,0.00031023,2]
[314216697,1708088945008,-250.0,0.00031078,2]
[314216698,1708088945034,-848.74,0.00031178,2]
[314216699,1708088945057,-341.75,0.00031185,2]
[314216700,1708088945081,-527.37,0.00031279,2]
[314216701,1708088945106,-387.96760157,0.00031295,2]
[314216702,1708088945127,-2139.76866498,0.0003132,5]
[314216703,1708088945148,-341.75,0.00031348,2]
[314216704,1708088945169,-2487.53,0.00031375,2]
[314216705,1708088945189,-200.0,0.00031466,2]
[314216706,1708088945210,-341.75,0.0003151,2]
[314216707,1708088945232,-169.83,0.00031523,2]
[314216708,1708088945253,-161.16332717,0.00031574,2]
[314216720,1708089031738,-2985.4498,0.000299,2]
[314216721,1708089031748,-226.8042744,0.00031574,2]
[314216722,1708089031757,-341.75,0.00031673,2]
[314216723,1708089031766,-842.15227683,0.00031797,4]
[314216724,1708089031775,-6080.02558877,0.00031797,4]
[314216725,1708089031798,-3786.01295464,0.00031797,4]
[314216726,1708089031808,-448.43655991,0.00031798,4]
[314216727,1708089031818,-298.9406127,0.00031798,4]
[314216728,1708089031829,-155.0,0.00031798,2]
[314216729,1708089031840,-1009.76870058,0.00031799,2]
[314216730,1708089031851,-8519.84117217,0.00031799,2]
[314216741,1708089032098,-33387.28898142,0.00031799,2]
[314216742,1708089032115,-1159.39560163,0.00031799,2]
[314216745,1708089037755,-626.8019089,0.00029899,2]
[314216746,1708089037765,-1375.78893918,0.00031799,2]
[314216747,1708089037777,-418.91915192,0.00031799,2]
[314216748,1708089037811,-1081.44,0.00031799,2]
[314216749,1708089037900,-279152.94849559,0.00031799,2]
[314216750,1708089037910,-93935.5440977,0.000318,3]
[314216751,1708089037920,-341.75,0.00031835,2]
[314216752,1708089037930,-387.96760157,0.00031853,2]
[314216753,1708089037943,-341.75,0.00031997,2]
[314216754,1708089037953,-387.96760157,0.00032132,2]
[314216755,1708089037963,-341.75,0.0003216,2]
[314216756,1708089037973,-1563.58,0.00032297,2]
[314216757,1708089037982,-800.0,0.00032301,2]
[314216758,1708089037992,-341.75,0.00032322,2]
[314216759,1708089038001,-500.0,0.00032333,2]
[314216760,1708089038011,-387.96760157,0.00032411,2]
[314216761,1708089038020,-164.61,0.00032468,2]
[314216762,1708089038030,-341.75,0.00032485,2]
[314216763,1708089038039,-153.6,0.00032579,2]
[314216764,1708089038048,-341.75,0.00032647,2]
[314216765,1708089038058,-7225.81108444,0.00032648,4]
[314216766,1708089038067,-157.33,0.00032677,2]
[314216767,1708089038076,-387.96760157,0.00032689,2]
[314216768,1708089038085,-153.6,0.00032721,2]
[314216769,1708089038095,-2139.76866498,0.00032739,6]
[314216770,1708089038104,-158.05,0.00032762,2]
[314216771,1708089038113,-824.79,0.00032788,2]
[314216772,1708089038123,-341.75,0.00032809,2]
[314216773,1708089038132,-154.28,0.00032839,2]
[314216774,1708089038142,-7225.81108444,0.00032857,4]
[314216775,1708089038151,-153.6,0.00032862,2]
[314216776,1708089038160,-21677.4332533,0.00032867,4]
[314216777,1708089038169,-302.0,0.00032871,3]
[314216778,1708089038179,-37319.12,0.00032877,2]
[314216779,1708089038188,-1000.0,0.00032947,2]
[314216780,1708089038197,-387.96760157,0.00032968,2]
[314216781,1708089038206,-341.75,0.00032972,2]
[314216782,1708089038215,-950.0,0.00033,3]
[314216783,1708089038224,-153.6,0.00033004,2]
[314216784,1708089038233,-167.87,0.00033099,2]
[314216785,1708089038242,-341.75,0.00033134,2]
[314216786,1708089038251,-153.6,0.00033145,2]
[314216787,1708089038260,-387.96760157,0.00033247,2]
[314216788,1708089038269,-153.6,0.00033287,2]
[314216789,1708089038280,-341.75,0.00033297,2]
[314216790,1708089038293,-153.6,0.00033428,2]
[314216791,1708089038303,-341.75,0.00033459,2]
[314216792,1708089038312,-157.33,0.00033494,2]
[314216793,1708089038322,-387.96760157,0.00033526,2]
[314216794,1708089038332,-527.37,0.00033542,2]
[314216795,1708089038341,-153.6,0.0003357,2]
[314216796,1708089038351,-7225.81108444,0.00033606,5]
[314216797,1708089038360,-341.75,0.00033621,2]
[314216798,1708089038371,-153.6,0.00033711,2]
[314216799,1708089038382,-341.75,0.00033784,2]
[314216800,1708089038391,-387.96760157,0.00033805,2]
[314216801,1708089038400,-153.6,0.00033853,2]
[314216802,1708089038409,-231.83,0.00033866,2]
[314216803,1708089038418,-1563.58,0.00033941,2]
[314216804,1708089038427,-341.75,0.00033946,2]
[314216805,1708089038437,-174.98,0.00033966,120]
[314216806,1708089038446,-153.6,0.00033994,2]
[314216807,1708089038455,-164.61,0.00034014,2]
[314216808,1708089038464,-387.96760157,0.00034084,2]
[314216809,1708089038473,-355.62179127,0.00034096,2]
[314216810,1708089038482,-76708.0,0.00034106,2]
[314216811,1708089038491,-153.6,0.00034136,2]
[314216812,1708089038500,-2139.76866498,0.00034159,6]
[314216813,1708089038509,-153.6,0.00034277,2]
[314216814,1708089038518,-7225.81108444,0.00034291,6]
[314216815,1708089038527,-254.94691351,0.000343,2]
[314216816,1708089038536,-157.33,0.00034311,2]
[314216817,1708089038545,-155.0,0.0003436,2]
[314216818,1708089038554,-152.96275076,0.0003436,20]
[314216819,1708089038563,-354.76,0.0003436,2]
[314216820,1708089038572,-387.96760157,0.00034363,2]
[314216821,1708089038581,-648.787679,0.000345,2]
[314216822,1708089038590,-14451.6221689,0.0003451,7]
[314216823,1708089038599,-925.334551,0.0003452,2]
[314216824,1708089038608,-500.15987,0.0003452,2]
[314216825,1708089038617,-1228.026855,0.0003452,2]